bitfinex/quotes_ETHUSD_20250430
["timestamp","ask_amount","ask_price","bid_price","bid_amount"]
[1745987304037,0.47235271,1812.8,1812.4,0.55]
[1745987305150,0.30962662,1812.7,1812.5,0.777]
[1745987305707,0.47235271,1812.6,1812.4,0.55]
[1745987306028,10.98053,1812.9,1812.4,1.3362]
[1745987306338,0.78210982,1812.8,1812.4,1.3362]
[1745987306899,0.30975711,1812.7,1812.4,1.3362]
[1745987307607,0.47235271,1812.6,1812.4,1.3362]
[1745987307808,0.30975711,1812.5,1812.4,2.12643841]
[1745987308040,0.78210982,1812.5,1812.4,2.12643841]
[1745987310343,0.78210982,1812.5,1812.4,7.6439842]
[1745987310543,0.47235271,1812.5,1812.4,7.6991506]
[1745987310706,0.47235271,1812.5,1812.4,2.12643841]
[1745987310906,0.05,1812.9,1812.4,2.12643841]
[1745987311103,0.05,1812.9,1812.6,0.55]
[1745987311538,0.30995865,1812.8,1812.6,0.55]
[1745987312555,0.30995865,1812.7,1812.6,0.55]
[1745987313454,0.30995865,1812.8,1812.6,0.55]
[1745987314161,0.30995865,1812.7,1812.6,0.55]
[1745987314741,0.78454301,1812.7,1812.6,0.55]
[1745987314932,0.30995865,1812.7,1812.6,0.55]
[1745987315137,0.78454301,1812.7,1812.6,0.55]
[1745987315332,0.30995865,1812.7,1812.6,1.3607]
[1745987315633,0.30995865,1812.7,1812.6,1.72095292]
[1745987315834,0.47458436,1812.7,1812.6,1.72095295]
[1745987316034,0.05,1812.9,1812.6,1.66579128]
[1745987316236,0.47458436,1812.8,1812.6,1.66579128]
[1745987328334,0.47458436,1812.8,1812.7,1.69021279]
[1745987328631,0.47458436,1812.8,1812.7,2.5758132]
[1745987328936,0.78455761,1812.8,1812.7,2.5758132]
[1745987329925,0.7845884,1812.8,1812.7,2.5758132]
[1745987331036,0.7845884,1812.8,1812.7,2.24021279]
[1745987331210,0.7845884,1812.8,1812.7,0.55]
[1745987334636,0.7845884,1812.8,1812.5,1.69021279]
[1745987334938,1.5844884,1812.8,1812.3,6.56418407]
[1745987335234,1.5844884,1812.8,1812.4,0.55]
[1745987335822,0.31000404,1812.7,1812.4,0.55]
[1745987336020,0.47642193,1812.6,1812.4,1.26141841]
[1745987336228,0.31000404,1812.7,1812.4,1.26141841]
[1745987336540,0.78642597,1812.6,1812.4,1.26141841]
[1745987336834,0.78642597,1812.6,1812.4,1.31658772]
[1745987337441,0.47642193,1812.6,1812.4,1.31658772]
[1745987337640,0.7999,1812.8,1812.4,1.31658772]
[1745987337938,0.47642193,1812.7,1812.4,1.31658772]
[1745987338137,0.47642193,1812.7,1812.4,1.26141841]
[1745987339650,0.31031422,1812.6,1812.5,2.51571279]
[1745987339941,0.31031422,1812.6,1812.5,2.89342591]
[1745987340116,0.78614554,1812.6,1812.5,2.89342591]
[1745987340735,0.47583132,1812.6,1812.5,2.89342591]
[1745987341038,0.05,1812.9,1812.6,0.55]
[1745987341226,0.47583132,1812.8,1812.6,0.55]
[1745987342255,0.31036258,1812.7,1812.6,0.55]
[1745987342743,0.7861939,1812.7,1812.6,0.55]
[1745987342950,0.31036258,1812.7,1812.6,0.55]
[1745987343151,0.7861939,1812.7,1812.6,0.55]
[1745987343326,0.31036258,1812.7,1812.6,0.55]
[1745987343526,0.7861939,1812.7,1812.6,0.55]
[1745987349865,0.54196559,1812.7,1812.6,6.34263699]
[1745987350044,0.05,1813.9,1813.5,0.55]
[1745987350246,0.05,1813.9,1813.7,0.55]
[1745987350462,0.39620266,1813.8,1813.5,0.55]
[1745987350794,0.05,1813.9,1813.5,0.55]
[1745987351068,0.39620266,1813.8,1813.5,0.55]
[1745987351220,0.05,1813.9,1813.5,0.55]
[1745987351425,0.39620266,1813.8,1813.5,0.55]
[1745987351861,0.39620266,1813.7,1813.5,0.55]
[1745987352025,0.05,1813.9,1813.5,0.55]
[1745987352433,0.39620266,1813.8,1813.5,0.55]
[1745987352642,0.05,1813.9,1813.5,0.55]
[1745987353047,0.39620266,1813.8,1813.5,0.55]
[1745987353458,0.39620266,1813.7,1813.3,4.57]
[1745987353671,0.39620266,1813.7,1813.4,0.55]
[1745987366190,0.39620266,1813.7,1813.4,2.24021279]
[1745987373502,0.39620266,1813.7,1813.3,4.57]
[1745987377305,0.7526,1813.6,1813.3,0.55]
[1745987377801,0.40686481,1813.5,1813.3,0.55]
[1745987380714,0.40686481,1813.5,1813.2,1.69021279]
[1745987380869,0.40686481,1813.5,1813.1,6.28921279]
[1745987381507,0.40686481,1813.5,1813.1,1.69021279]
[1745987384087,0.40686481,1813.5,1813.2,0.55]
[1745987387792,0.40686481,1813.5,1813.1,1.69021279]
[1745987395500,0.40686481,1813.5,1813.1,1.74536159]
[1745987395725,0.40686481,1813.5,1813.1,1.69021279]
[1745987397234,0.7543,1813.4,1813.1,1.69021279]
[1745987397401,0.40686481,1813.5,1813.2,0.55]
[1745987397928,1.20356481,1813.5,1813.2,0.55]
[1745987398699,1.20356481,1813.5,1813.1,1.69021279]
[1745987401999,1.20356481,1813.5,1813.1,1.74536107]
[1745987402203,1.20356481,1813.5,1813.1,1.69021279]
[1745987403351,1.62392129,1813.5,1813.1,1.69021279]
[1745987405240,1.62392129,1813.5,1813.1,0.55]
[1745987405545,1.62392129,1813.5,1813.1,1.75567353]
[1745987407434,1.20356481,1813.5,1813.1,2.58847353]
[1745987411536,0.40686481,1813.5,1813.1,8.10370118]
[1745987411876,0.40686481,1813.5,1813.4,1.348]
[1745987415577,0.40686481,1813.5,1813.4,3.03530406]
[1745987417575,0.8457,1813.9,1813.4,3.03530406]
[1745987417883,0.8457,1813.9,1813.6,0.55]
[1745987422979,0.37419229,1813.8,1813.6,0.55]
[1745987423156,0.8457,1813.9,1813.6,0.55]
[1745987423357,0.37419229,1813.7,1813.6,0.55]
[1745987423546,0.8457,1813.9,1813.6,0.55]
[1745987423740,0.37419229,1813.7,1813.6,0.55]
[1745987423946,0.8457,1813.9,1813.6,0.55]
[1745987424144,0.37419229,1813.7,1813.6,2.23730406]
[1745987424403,0.05,1813.9,1813.6,2.53900501]
[1745987424553,0.37524783,1813.7,1813.6,2.53900501]
[1745987424760,0.05,1813.9,1813.6,3.29500501]
[1745987425250,0.37524783,1813.8,1813.6,3.29500501]
[1745987425450,0.05,1813.9,1813.6,3.29500501]
[1745987425710,0.37524783,1813.8,1813.7,0.8795005]
[1745987425845,0.05,1813.9,1813.7,0.8795005]
[1745987426047,0.37524783,1813.8,1813.7,0.8795005]
[1745987426247,0.05,1813.9,1813.7,0.8795005]
[1745987426563,0.37524783,1813.8,1813.6,0.55]
[1745987426885,0.3759074,1813.7,1813.6,0.55]
[1745987427185,0.8349,1813.9,1813.6,0.55]
[1745987427385,0.3759074,1813.7,1813.6,0.55]
[1745987427585,0.8349,1813.9,1813.6,0.55]
[1745987427780,0.3759074,1813.7,1813.6,0.55]
[1745987427986,0.8349,1813.9,1813.6,0.55]
[1745987428186,0.3759074,1813.7,1813.6,0.55]
[1745987428415,0.8349,1813.9,1813.6,0.55]
[1745987428574,0.3759074,1813.7,1813.6,0.55]
[1745987429088,0.8349,1813.9,1813.6,0.55]
[1745987429291,0.3759074,1813.7,1813.6,0.55]
[1745987429589,0.8349,1813.9,1813.6,0.55]
[1745987429750,0.3759074,1813.7,1813.6,0.55]
[1745987430270,0.8349,1813.9,1813.4,0.55]
[1745987430471,0.3759074,1813.8,1813.4,0.55]
[1745987430689,0.8349,1813.9,1813.4,0.55]
[1745987430987,0.3759074,1813.8,1813.4,0.55]
[1745987431149,1.21839,1813.9,1813.4,0.55]
[1745987431350,0.3759074,1813.7,1813.4,0.55]
[1745987431552,1.21839,1813.9,1813.4,0.55]
[1745987431790,0.3759074,1813.6,1813.4,0.55]
[1745987431987,0.8349,1813.9,1813.4,0.97485701]
[1745987432205,0.3759074,1813.5,1813.4,0.55]
[1745987432416,0.7997,1813.6,1813.1,3.69857014]
[1745987432618,0.3759074,1813.5,1813.1,3.69857014]
[1745987433108,0.3759074,1813.5,1813.2,0.55]
[1745987436409,0.3759074,1813.5,1813.0,7.48608156]
[1745987436611,0.3759074,1813.5,1813.1,1.29860816]
[1745987436781,0.7642,1813.4,1813.1,1.29860816]
[1745987437182,0.37439007,1813.3,1813.1,1.29860816]
[1745987437410,0.7642,1813.4,1813.1,1.29860816]
[1745987437582,0.37439007,1813.2,1813.1,1.29860816]
[1745987437782,0.7642,1813.4,1813.1,1.29860816]
[1745987438452,0.37439007,1813.3,1813.1,1.29860816]
[1745987438779,0.7642,1813.4,1813.1,1.29860816]
[1745987438979,0.37439007,1813.2,1813.1,1.29860816]
[1745987439212,0.7642,1813.4,1813.1,1.29860816]
[1745987439379,0.37439007,1813.2,1813.1,1.29860816]
[1745987439581,0.7642,1813.4,1813.1,1.29860816]
[1745987439791,0.37439007,1813.2,1813.1,1.29860816]
[1745987440134,0.37201527,1813.2,1813.1,1.29860816]
[1745987440425,0.7642,1813.4,1813.1,0.55]
[1745987440628,0.37201527,1813.2,1813.1,0.55]
[1745987440802,0.7642,1813.4,1813.1,0.55]
[1745987440985,0.37201527,1813.2,1813.1,0.55]
[1745987441184,0.7642,1813.4,1813.1,0.55]
[1745987441531,0.7642,1813.4,1813.1,0.89670816]
[1745987441697,0.37201527,1813.3,1813.1,0.89670816]
[1745987441895,0.7642,1813.4,1813.1,0.89670816]
[1745987442096,0.37201527,1813.3,1813.1,0.89670816]
[1745987442308,0.7642,1813.4,1813.1,0.89670816]
[1745987442510,0.37201527,1813.2,1813.1,0.89670816]
[1745987442802,0.7642,1813.4,1813.1,0.89670816]
[1745987442986,0.37201527,1813.2,1813.1,0.89670816]
[1745987443190,0.7642,1813.4,1813.1,0.89670816]
[1745987443454,0.37201527,1813.2,1813.1,0.89670816]
[1745987443634,0.7642,1813.4,1813.1,0.89670816]
[1745987443787,0.37201527,1813.2,1813.1,0.89670816]
[1745987444338,0.7995,1813.3,1812.8,3.69857014]
[1745987444493,0.37142142,1813.2,1812.8,3.69857014]
[1745987444892,0.37142142,1813.2,1812.9,0.55]
[1745987456843,0.8155,1813.1,1812.7,5.3946]
[1745987457046,0.8155,1813.1,1812.7,4.57]
[1745987457362,0.36911175,1813.0,1812.5,2.46130406]
[1745987457639,0.36911175,1813.0,1812.5,3.53429148]
[1745987457640,0.8155,1812.9,1812.5,3.53429148]
[1745987458003,0.36911175,1812.8,1812.6,0.55]
[1745987458749,0.36911175,1812.8,1812.6,0.97329992]
[1745987459046,0.36911175,1812.8,1812.6,0.55]
[1745987459202,0.8155,1812.9,1812.6,0.55]
[1745987459404,0.36911175,1812.7,1812.6,0.55]
[1745987459604,0.8155,1812.9,1812.6,0.55]
[1745987460005,0.36376514,1812.8,1812.6,0.55]
[1745987462043,0.7808,1812.7,1812.6,0.55]
[1745987462255,0.7808,1812.7,1812.5,3.18110652]
[1745987462609,0.36376514,1812.6,1812.5,3.73110652]
[1745987463009,0.7808,1812.7,1812.5,3.73110652]
[1745987463309,0.36376514,1812.6,1812.5,3.73110652]
[1745987463535,0.7608,1812.8,1812.5,3.73110652]
[1745987463716,0.36376514,1812.6,1812.5,2.6581191]
[1745987463922,0.7608,1812.8,1812.5,2.6581191]
[1745987464122,0.36376514,1812.6,1812.5,2.6581191]
[1745987464322,0.7608,1812.8,1812.5,2.6581191]
[1745987464608,6.15,1813.2,1812.5,3.4725191]
[1745987464609,0.36376514,1812.6,1812.5,3.4725191]
[1745987464821,1.3758,1813.1,1812.5,3.4725191]
[1745987465122,0.36376514,1813.0,1812.5,3.4725191]
[1745987466657,0.7544,1812.9,1812.5,3.4725191]
[1745987467312,0.36376514,1812.8,1812.5,3.4725191]
[1745987467514,0.36376514,1812.8,1812.5,4.27677101]
[1745987471469,0.36376514,1812.8,1812.6,0.55]
[1745987471778,0.36376514,1812.8,1812.5,0.42081504]
[1745987472072,0.36376514,1812.8,1812.5,0.55]
[1745987472813,0.36376514,1812.8,1812.5,1.75636379]
[1745987474182,0.36376514,1812.8,1812.5,0.55]
[1745987474474,0.36376514,1812.8,1812.5,2.16877078]
[1745987475574,0.36376514,1812.8,1812.6,1.3609]
[1745987476077,0.8254,1813.1,1812.6,1.3609]
[1745987476550,0.36330289,1813.0,1812.6,1.3609]
[1745987478977,0.36330289,1813.0,1812.6,2.56726379]
[1745987483381,0.8272,1812.9,1812.6,1.75636379]
[1745987484082,0.36330289,1812.8,1812.6,1.75636379]
[1745987486691,0.36330289,1812.8,1812.6,0.55]
[1745987488525,0.36330289,1812.8,1812.5,0.41240699]
[1745987488983,0.36330289,1812.8,1812.5,0.55]
[1745987489872,0.36330289,1812.8,1812.5,1.75636379]
[1745987490182,0.36330289,1812.8,1812.5,2.46674017]
[1745987492858,0.36330289,1812.8,1812.5,2.885471]
[1745987495695,0.36330289,1812.8,1812.5,2.17509462]
[1745987507620,0.36330289,1812.8,1812.5,0.96873083]
[1745987507912,0.7896,1812.8,1812.5,0.96873083]
[1745987508118,0.36389716,1812.7,1812.5,0.96873083]
[1745987509181,0.36389716,1812.7,1812.4,3.69857014]
[1745987509182,0.8004,1812.6,1812.4,3.69857014]
[1745987509681,1.16152384,1812.5,1812.4,3.69857014]
[1745987509883,1.47186908,1812.5,1812.4,3.69857014]
[1745987513212,1.47186908,1812.5,1812.2,1.20636379]
[1745987513434,1.47186908,1812.5,1812.1,2.1715715]
[1745987513776,0.31034524,1812.4,1812.1,1.75636379]
[1745987514280,0.36112384,1812.3,1812.1,1.75636379]
[1745987514506,0.8004,1812.5,1812.1,1.75636379]
[1745987514783,0.36112384,1812.4,1812.1,2.16374234]
[1745987516215,0.36112384,1812.4,1811.9,9.03067014]
[1745987516422,0.30975981,1812.3,1812.0,1.75636379]
[1745987516881,0.36112384,1812.2,1812.0,1.75636379]
[1745987518014,0.8004,1812.5,1812.0,1.75636379]
[1745987518220,0.36112384,1812.1,1812.0,1.75636379]
[1745987518570,0.8004,1812.5,1812.0,1.75636379]
[1745987518684,0.36112384,1812.4,1812.0,2.1767526]
[1745987518884,0.36112384,1812.4,1812.0,3.07313812]
[1745987519721,0.30963025,1812.3,1812.0,3.07313812]
[1745987519926,0.30963025,1812.3,1812.1,1.20636379]
[1745987520138,0.36112384,1812.2,1812.1,1.20636379]
[1745987520731,0.8004,1812.5,1812.1,1.20636379]
[1745987520891,0.36112384,1812.4,1812.1,1.20636379]
[1745987524836,0.30954887,1812.3,1812.1,1.20636379]
[1745987525143,0.35953867,1812.2,1812.1,1.20636379]
[1745987525825,0.8004,1812.5,1812.1,1.20636379]
[1745987526062,0.35953867,1812.2,1812.1,1.20636379]
[1745987526506,0.8004,1812.5,1812.1,1.20636379]
[1745987526708,0.35953867,1812.4,1812.1,1.20636379]
[1745987527197,0.30956522,1812.3,1812.1,1.20636379]
[1745987527838,0.35953867,1812.2,1812.1,1.20636379]
[1745987528738,0.8004,1812.5,1812.1,1.20636379]
[1745987529041,0.35953867,1812.4,1812.1,1.20636379]
[1745987529247,0.66915058,1812.4,1812.1,1.20636379]
[1745987529419,0.66915058,1812.4,1812.0,0.55]
[1745987529614,0.7889,1812.3,1811.8,0.55]
[1745987529930,0.30961191,1812.2,1811.7,10.26863393]
[1745987530102,0.35775536,1812.1,1811.8,1.20636379]
[1745987530302,0.30961191,1812.2,1811.8,1.26155115]
[1745987530503,0.35775536,1812.1,1811.8,1.26155115]
[1745987530704,0.7889,1812.3,1811.8,1.26155115]
[1745987530931,0.7889,1812.3,1811.8,2.90090085]
[1745987530932,0.35775536,1812.2,1811.8,2.90090085]
[1745987531131,0.35775536,1812.2,1811.8,2.84571349]
[1745987532942,0.35775536,1812.2,1811.9,1.20636379]
[1745987535148,0.754,1811.9,1811.5,3.69857014]
[1745987535346,0.35650019,1811.8,1811.5,3.69857014]
[1745987535510,1.25003638,1811.9,1811.5,3.69857014]
[1745987535717,0.66534981,1811.8,1811.5,3.69857014]
[1745987536752,0.30984058,1811.7,1811.5,3.69857014]
[1745987537115,0.35550923,1811.6,1811.5,3.69857014]
[1745987537316,0.30984058,1811.7,1811.5,3.69857014]
[1745987537521,0.35550923,1811.6,1811.5,3.69857014]
[1745987537734,0.30984058,1811.8,1811.5,3.69857014]
[1745987537935,0.35550923,1811.7,1811.5,3.69857014]
[1745987539025,0.754,1811.9,1811.4,0.55]
[1745987539227,0.35550923,1811.6,1811.4,1.40357907]
[1745987539453,0.754,1811.9,1811.4,1.40357907]
[1745987539650,0.35550923,1811.5,1811.4,1.40357907]
[1745987539867,0.754,1811.9,1811.4,1.40357907]
[1745987540369,0.66516584,1811.8,1811.4,1.40357907]
[1745987541378,0.35550923,1811.8,1811.4,1.40357907]
[1745987541675,0.754,1811.9,1811.4,1.40357907]
[1745987541829,0.35550923,1811.7,1811.4,1.40357907]
[1745987542166,0.35550923,1811.6,1811.4,1.40357907]
[1745987542525,0.754,1811.9,1811.5,0.7575]
[1745987542726,0.35550923,1811.8,1811.7,2.9985417]
[1745987542957,11.503,1812.1,1811.7,3.35339587]
[1745987543177,0.35286586,1812.0,1811.9,2.4717417]
[1745987543455,6.906,1812.4,1812.0,0.55]
[1745987544465,0.30942048,1812.3,1812.0,0.55]
[1745987544676,0.30942048,1812.3,1812.0,1.40407702]
[1745987545037,0.30942048,1812.3,1812.1,0.81357975]
[1745987545245,0.30942048,1812.5,1812.2,0.55]
[1745987546344,0.30942048,1812.6,1812.2,0.55]
[1745987546553,0.30942048,1812.6,1812.2,0.84994417]
[1745987547380,2.0,1812.3,1812.2,0.84994417]
[1745987554369,2.0,1812.3,1812.2,1.61104417]
[1745987554563,2.0,1812.3,1812.2,7.12919889]
[1745987554755,2.0,1812.3,1812.2,11.69719889]
[1745987555559,2.0,1812.3,1812.2,12.11231656]
[1745987563476,2.0,1812.3,1812.2,21.28231656]
[1745987563677,2.0,1812.3,1812.2,22.97335826]
[1745987563975,1.70515202,1812.3,1812.2,22.97335826]
[1745987564491,1.70515202,1812.3,1812.2,21.28231656]
[1745987565377,1.70515202,1812.3,1812.2,22.97335826]
[1745987566142,1.20315202,1812.3,1812.2,22.97335826]
[1745987569484,0.8186,1813.2,1812.7,0.55]
[1745987569652,0.8186,1813.2,1813.0,0.55]
[1745987569846,0.33434177,1813.1,1813.0,0.55]
[1745987574102,0.33434177,1813.1,1812.8,0.55]
[1745987578295,0.33434177,1813.1,1812.8,0.96451563]
[1745987578504,0.33434177,1813.1,1812.8,1.78172156]
[1745987579643,0.33434177,1813.1,1812.8,7.2980398]
[1745987580230,0.33434177,1813.1,1812.8,7.29785536]
[1745987581335,0.33434177,1813.1,1812.9,1.6910417]
[1745987581509,0.33434177,1813.1,1812.9,7.26211239]
[1745987581852,0.33434177,1813.1,1813.0,1.27621124]
[1745987581997,0.33434177,1813.1,1813.0,6.79193104]
[1745987582203,0.7535,1813.4,1813.1,6.06534181]
[1745987582431,0.33811395,1813.3,1813.1,6.06534181]
[1745987582730,0.33811395,1813.2,1813.1,6.06534181]
[1745987582925,0.33811395,1813.2,1813.1,7.7525691]
[1745987583143,0.7535,1813.4,1813.1,2.23722729]
[1745987583365,0.33811395,1813.3,1813.1,2.23722729]
[1745987583566,0.7535,1813.4,1813.1,2.23722729]
[1745987583942,0.33811395,1813.3,1813.1,9.44350107]
[1745987584265,0.7535,1813.4,1813.3,0.55]
[1745987584763,1.09161395,1813.4,1813.3,0.55]
[1745987586629,0.33811395,1813.4,1813.3,7.75584895]
[1745987586846,0.824,1813.6,1813.1,5.51530422]
[1745987587041,0.34095845,1813.4,1813.2,0.55]
[1745987587256,1.16495845,1813.4,1813.2,0.55]
[1745987587454,0.824,1813.4,1813.0,5.29121124]
[1745987587653,0.34095845,1813.3,1813.1,0.52912112]
[1745987587880,0.34095845,1813.3,1813.1,1.07912112]
[1745987588064,0.8133,1813.2,1812.9,4.564]
[1745987588230,1.15425845,1813.2,1812.9,4.564]
[1745987588432,1.15425845,1813.2,1813.0,0.55]
[1745987594882,1.15425845,1813.2,1812.9,4.564]
[1745987595179,0.83,1813.1,1812.7,10.08060401]
[1745987595482,0.83,1813.1,1812.8,1.0080604]
[1745987595678,0.34095845,1813.0,1812.8,1.0080604]
[1745987596178,0.34095845,1813.0,1812.8,1.063218]
[1745987596777,0.34095845,1813.0,1812.9,0.55]
[1745987597087,0.34095845,1813.0,1812.9,1.26295339]
[1745987597486,0.34095845,1813.0,1812.9,0.55]
[1745987597853,0.34095845,1813.0,1812.9,2.2410417]
[1745987598078,0.34095845,1813.0,1812.9,7.75706574]
[1745987598271,0.8186,1813.3,1812.9,7.75706574]
[1745987598781,0.34261237,1813.2,1812.9,7.75706574]
[1745987598953,0.34261237,1813.2,1813.1,0.55]
[1745987601382,0.65266408,1813.2,1813.1,0.55]
[1745987603166,0.34261237,1813.2,1813.1,0.55]
[1745987603664,0.34261237,1813.2,1813.1,8.50785728]
[1745987604263,0.7668,1813.5,1813.1,8.50785728]
[1745987604462,0.7668,1813.5,1813.3,0.55]
[1745987605156,0.3100101,1813.4,1813.3,0.55]
[1745987605951,0.3100101,1813.4,1813.3,2.25]
[1745987607899,0.3100101,1813.4,1813.3,2.30514142]
[1745987608302,0.3100101,1813.4,1813.3,2.25]
[1745987608463,0.3100101,1813.4,1813.3,3.18874864]
[1745987608799,0.7668,1813.5,1813.3,3.18874864]
[1745987608974,0.7668,1813.5,1813.3,2.25]
[1745987613002,0.81,1813.8,1813.3,2.25]
[1745987613703,0.30990166,1813.7,1813.3,2.25]
[1745987613880,0.30990166,1813.7,1813.3,2.30514096]
[1745987614084,0.30990166,1813.7,1813.3,2.25]
[1745987614287,0.30990166,1813.6,1813.3,2.25]
[1745987615307,0.30990166,1813.6,1813.3,2.56007857]
[1745987617805,0.30990166,1813.6,1813.3,3.32907857]
[1745987617806,0.34340612,1813.5,1813.3,3.32907857]
[1745987617985,0.34340612,1813.5,1813.3,8.84373972]
[1745987619906,0.81,1813.8,1813.3,14.35835348]
[1745987620110,0.81,1813.8,1813.5,0.55]
[1745987620423,0.30977495,1813.7,1813.5,0.55]
[1745987620988,0.8732,1813.9,1813.5,6.06407838]
[1745987621311,0.8732,1813.9,1813.5,0.55]
[1745987621505,0.8732,1813.9,1813.5,1.30002083]
[1745987621710,0.30964774,1813.8,1813.5,1.30002083]
[1745987622801,0.30964774,1813.8,1813.5,7.61420955]
[1745987623003,0.30964774,1813.8,1813.5,2.10002083]
[1745987624791,0.30964774,1813.8,1813.5,1.35]
[1745987626156,0.30964774,1813.8,1813.5,0.55]
[1745987632538,0.30964774,1813.8,1813.5,1.3522]
[1745987632746,0.8732,1813.9,1813.5,1.3522]
[1745987632913,0.34459648,1813.7,1813.5,1.3522]
[1745987633233,0.34638181,1813.6,1813.5,1.3522]
[1745987633437,0.8732,1813.9,1813.5,2.03885944]
[1745987633624,0.34638181,1813.8,1813.5,2.03885944]
[1745987633942,0.8732,1813.9,1813.5,2.03885944]
[1745987634141,0.34638181,1813.7,1813.5,1.3522]
[1745987634439,0.34638181,1813.6,1813.5,1.3522]
[1745987634602,0.8732,1813.9,1813.5,1.3522]
[1745987634801,0.34638181,1813.8,1813.5,1.3522]
[1745987635000,0.8732,1813.9,1813.5,1.3522]
[1745987635203,0.34638181,1813.8,1813.5,1.3522]
[1745987635400,0.30982278,1813.7,1813.5,1.3522]
[1745987635611,0.30982278,1813.7,1813.5,2.03885944]
[1745987635817,0.34638181,1813.6,1813.5,2.03885944]
[1745987636118,0.30982278,1813.7,1813.5,2.03885944]
[1745987636319,0.34638181,1813.6,1813.5,2.03885944]
[1745987636645,0.30982278,1813.8,1813.5,2.03885944]
[1745987636843,0.34638181,1813.7,1813.5,2.03885944]
[1745987637711,0.8732,1813.9,1813.5,2.03885944]
[1745987637942,0.34638181,1813.8,1813.5,2.03885944]
[1745987638949,0.8732,1813.9,1813.5,2.03885944]
[1745987639115,0.34638181,1813.7,1813.5,2.03885944]
[1745987639315,0.30995309,1813.8,1813.5,2.03885944]
[1745987639550,0.34638181,1813.6,1813.5,2.03885944]
[1745987640247,0.8732,1813.9,1813.5,2.03885944]
[1745987640447,0.34638181,1813.8,1813.5,2.03885944]
[1745987640624,0.8732,1813.9,1813.5,2.03885944]
[1745987640811,0.34638181,1813.8,1813.5,2.03885944]
[1745987641009,0.8732,1813.9,1813.5,2.03885944]
[1745987641226,0.34638181,1813.8,1813.5,7.55302935]
[1745987641553,0.34638181,1813.8,1813.7,6.875391]
[1745987641775,0.05,1813.9,1813.8,6.06328702]
[1745987641910,0.05,1813.9,1813.8,0.55]
[1745987642328,0.39770421,1813.9,1813.8,0.55]
[1745987642537,0.05,1813.9,1813.8,0.55]
[1745987642742,0.39856361,1813.9,1813.8,1.2375338]
[1745987643523,0.05,1813.9,1813.8,0.55]
[1745987645458,0.40015011,1813.9,1813.8,0.55]
[1745987650339,0.40015011,1813.9,1813.7,0.8118]
[1745987650542,0.7931,1813.8,1813.6,0.75530294]
[1745987650737,0.7931,1813.8,1813.5,3.69857014]
[1745987650968,0.7931,1813.6,1813.5,3.69857014]
[1745987651383,1.14278742,1813.6,1813.5,3.69857014]
[1745987651675,1.45251083,1813.6,1813.5,3.69857014]
[1745987653279,0.65941083,1813.6,1813.5,3.69857014]
[1745987654377,0.65941083,1813.6,1813.3,0.8]
[1745987655185,0.34968742,1813.6,1813.3,0.8]
[1745987655543,3.768,1813.8,1813.4,0.55]
[1745987655749,0.34406743,1813.5,1813.4,0.55]
[1745987656252,3.768,1813.8,1813.4,0.55]
[1745987656478,0.34406743,1813.7,1813.4,0.55]
[1745987656783,0.30945505,1813.6,1813.4,0.55]
[1745987656975,0.30945505,1813.6,1813.5,6.87179906]
[1745987657286,0.30945505,1813.6,1813.5,7.55897897]
[1745987657485,0.05,1813.9,1813.5,7.55897897]
[1745987657735,0.34499323,1813.8,1813.5,9.25897897]
[1745987658001,1.11289323,1813.8,1813.5,2.5076]
[1745987658206,0.7679,1813.8,1813.5,2.5076]
[1745987658415,0.34499323,1813.7,1813.5,2.5076]
[1745987658617,0.34499323,1813.7,1813.5,8.02179315]
[1745987658911,0.8179,1813.9,1813.6,1.35217932]
[1745987658912,0.05,1813.9,1813.6,1.35217932]
[1745987659068,0.34499323,1813.8,1813.7,0.8156]
[1745987659408,0.05,1813.9,1813.7,0.8156]
[1745987659605,0.34565442,1813.8,1813.7,0.8156]
[1745987660005,0.05,1813.9,1813.7,0.8156]
[1745987660371,0.34565442,1813.8,1813.7,0.8156]
[1745987660568,0.34565442,1813.8,1813.7,1.3656]
[1745987660807,0.05,1813.9,1813.7,1.63876471]
[1745987661106,0.34618332,1813.8,1813.7,2.18876471]
[1745987661405,0.05,1813.9,1813.7,2.18876471]
[1745987661804,0.34618332,1813.8,1813.7,2.18876471]
[1745987662175,0.05,1813.9,1813.7,2.18876471]
[1745987662514,0.34631554,1813.8,1813.7,2.18876471]
[1745987662813,0.05,1813.9,1813.7,2.18876471]
[1745987663312,0.34631554,1813.8,1813.7,2.18876471]
[1745987663514,0.05,1813.9,1813.7,2.18876471]
[1745987663717,0.34631554,1813.8,1813.7,2.18876471]
[1745987663876,0.05,1813.9,1813.7,2.18876471]
[1745987664079,0.34631554,1813.8,1813.7,2.18876471]
[1745987664415,0.05,1813.9,1813.7,2.18876471]
[1745987664707,0.34631554,1813.8,1813.7,2.18876471]
[1745987664913,0.05,1813.9,1813.7,2.18876471]
[1745987665210,0.34631554,1813.8,1813.7,2.18876471]
[1745987665616,0.05,1813.9,1813.7,2.18876471]
[1745987665979,0.34829924,1813.8,1813.7,0.55]
[1745987666315,0.05,1813.9,1813.7,0.55]
[1745987666529,0.34829924,1813.8,1813.7,0.55]
[1745987666690,0.05,1813.9,1813.7,0.55]
[1745987666873,0.34829924,1813.8,1813.7,0.55]
[1745987667079,0.05,1813.9,1813.7,0.55]
[1745987667416,0.34829924,1813.8,1813.7,0.55]
[1745987667723,0.05,1813.9,1813.7,0.55]
[1745987667880,0.34829924,1813.8,1813.7,0.55]
[1745987668225,0.05,1813.9,1813.7,0.55]
[1745987668602,0.34829924,1813.8,1813.7,0.55]
[1745987668989,0.05,1813.9,1813.7,0.55]
[1745987669376,0.34829924,1813.8,1813.7,0.55]
[1745987669708,0.05,1813.9,1813.7,0.55]
[1745987669709,0.8135,1813.9,1813.7,0.55]
[1745987669913,0.34829924,1813.8,1813.7,0.55]
[1745987670118,0.8135,1813.9,1813.7,0.55]
[1745987670332,0.34829924,1813.8,1813.7,0.55]
[1745987670624,0.8135,1813.9,1813.7,0.55]
[1745987671127,0.34829924,1813.8,1813.6,0.80217932]
[1745987671291,0.8135,1813.9,1813.6,0.80217932]
[1745987671628,0.34829924,1813.8,1813.6,0.80217932]
[1745987671927,0.8135,1813.9,1813.6,0.80217932]